[Event "***Titled Tuesday 3|2 Blitz"]
[Site "Chess.com"]
[Date "2017.02.07"]
[Round "2"]
[White "pastouche06"]
[Black "Grebeniuk-S"]
[Result "1-0"]
[WhiteElo "2329"]
[BlackElo "2431"]
[TimeControl "180+2"]
[EndTime "13:27:00 PST"]
[Termination "pastouche06 won by checkmate"]

1. d4 {[%clk 0:03:02]} 1... f5 {[%clk 0:03:00.8]} 2. Bg5 {[%clk 0:03:00.8]} 2...
g6 {[%clk 0:03:01.5]} 3. Nc3 {[%clk 0:03:00.7]} 3... Nh6 {[%clk 0:03:02.2]} 4.
h4 {[%clk 0:02:54.4]} 4... Nf7 {[%clk 0:03:02.9]} 5. Bf4 {[%clk 0:02:54.7]} 5...
d6 {[%clk 0:03:03.2]} 6. e4 {[%clk 0:02:45.4]} 6... Bg7 {[%clk 0:02:52.6]} 7.
exf5 {[%clk 0:02:33.6]} 7... Bxf5 {[%clk 0:02:53]} 8. Bd3 {[%clk 0:02:24.2]}
8... Bxd3 {[%clk 0:02:52]} 9. Qxd3 {[%clk 0:02:25.5]} 9... O-O {[%clk
0:02:53.5]} 10. Nge2 {[%clk 0:02:22.7]} 10... e5 {[%clk 0:02:49.2]} 11. Be3
{[%clk 0:02:16.9]} 11... Nc6 {[%clk 0:02:47]} 12. O-O-O {[%clk 0:02:07.4]} 12...
Qd7 {[%clk 0:01:59.8]} 13. h5 {[%clk 0:01:53.6]} 13... exd4 {[%clk 0:01:35.9]}
14. hxg6 {[%clk 0:01:47.2]} 14... Nfe5 {[%clk 0:01:25.9]} 15. Qe4 {[%clk
0:01:46.6]} 15... hxg6 {[%clk 0:01:01.4]} 16. Nxd4 {[%clk 0:01:46.8]} 16... Nxd4
{[%clk 0:00:56.8]} 17. Bxd4 {[%clk 0:01:48.7]} 17... Rae8 {[%clk 0:00:40.7]} 18.
Qh4 {[%clk 0:01:37]} 18... Bf6 {[%clk 0:00:22.9]} 19. Qg3 {[%clk 0:00:54.9]}
19... Qg7 {[%clk 0:00:21.1]} 20. Nd5 {[%clk 0:00:50.5]} 20... c6 {[%clk
0:00:18.8]} 21. Nxf6+ {[%clk 0:00:47.6]} 21... Qxf6 {[%clk 0:00:20.7]} 22. Kb1
{[%clk 0:00:33.6]} 22... Rf7 {[%clk 0:00:21.4]} 23. Rh6 {[%clk 0:00:29.4]} 23...
Rg7 {[%clk 0:00:15.9]} 24. Rdh1 {[%clk 0:00:28.9]} 24... Kf7 {[%clk 0:00:12.5]}
25. Qb3+ {[%clk 0:00:26.7]} 25... Qe6 {[%clk 0:00:12.5]} 26. Qxb7+ {[%clk
0:00:24.3]} 26... Re7 {[%clk 0:00:14]} 27. Qa6 {[%clk 0:00:22.8]} 27... c5
{[%clk 0:00:15.2]} 28. Bc3 {[%clk 0:00:23]} 28... Qc4 {[%clk 0:00:15.1]} 29. Qc8
{[%clk 0:00:21]} 29... Qe6 {[%clk 0:00:15]} 30. Qa8 {[%clk 0:00:21.1]} 30... Qf5
{[%clk 0:00:13.3]} 31. Rh8 {[%clk 0:00:20]} 31... Ke6 {[%clk 0:00:14.1]} 32.
Qc8+ {[%clk 0:00:19.8]} 32... Rd7 {[%clk 0:00:14.5]} 33. Re8+ {[%clk 0:00:19.8]}
33... Re7 {[%clk 0:00:15.9]} 34. Rhh8 {[%clk 0:00:18.9]} 34... Kd5 {[%clk
0:00:12.5]} 35. Qa8+ {[%clk 0:00:16.4]} 35... Kc4 {[%clk 0:00:10.7]} 36. Bxe5
{[%clk 0:00:13.9]} 36... Qxe5 {[%clk 0:00:09.9]} 37. b3+ {[%clk 0:00:14.9]}
37... Kc3 {[%clk 0:00:08.3]} 38. Qf3+ {[%clk 0:00:15.7]} 38... Kd2 {[%clk
0:00:09.6]} 39. Qd3+ {[%clk 0:00:16.2]} 39... Ke1 {[%clk 0:00:10.9]} 40. Rh1+
{[%clk 0:00:17.2]} 40... Kxf2 {[%clk 0:00:12.2]} 41. Qf3# {[%clk 0:00:18.4]} 1-0

[Event "***Titled Tuesday 3|2 Blitz"]
[Site "Chess.com"]
[Date "2017.02.07"]
[Round "2"]
[White "olgerts_indricans"]
[Black "FMchesstrainer"]
[Result "0-1"]
[WhiteElo "2332"]
[BlackElo "2369"]
[TimeControl "180+2"]
[EndTime "13:27:02 PST"]
[Termination "FMchesstrainer won by resignation"]

1. e4 {[%clk 0:03:02]} 1... c5 {[%clk 0:02:59.3]} 2. Nf3 {[%clk 0:03:01.8]} 2...
Nc6 {[%clk 0:03:00.4]} 3. Bb5 {[%clk 0:03:02.5]} 3... Na5 {[%clk 0:03:01]} 4.
O-O {[%clk 0:03:02.1]} 4... a6 {[%clk 0:03:02.2]} 5. Be2 {[%clk 0:03:03.3]} 5...
Nc6 {[%clk 0:03:01]} 6. d4 {[%clk 0:03:00.9]} 6... cxd4 {[%clk 0:03:00.9]} 7.
Nxd4 {[%clk 0:03:02.8]} 7... Nf6 {[%clk 0:03:02.3]} 8. Nc3 {[%clk 0:03:02.7]}
8... e6 {[%clk 0:02:59.8]} 9. Be3 {[%clk 0:03:02.6]} 9... d6 {[%clk 0:02:58.6]}
10. Kh1 {[%clk 0:02:58.2]} 10... Be7 {[%clk 0:02:58.7]} 11. f4 {[%clk
0:02:56.8]} 11... O-O {[%clk 0:02:59.8]} 12. Qe1 {[%clk 0:02:57.1]} 12... Nxd4
{[%clk 0:03:00.9]} 13. Bxd4 {[%clk 0:02:57.9]} 13... b5 {[%clk 0:03:02.4]} 14.
Bf3 {[%clk 0:02:42.6]} 14... Rb8 {[%clk 0:02:39.6]} 15. Rd1 {[%clk 0:02:32.6]}
15... b4 {[%clk 0:02:33.9]} 16. Nb1 {[%clk 0:02:05]} 16... Qc7 {[%clk
0:02:15.7]} 17. c3 {[%clk 0:01:58.9]} 17... a5 {[%clk 0:02:12.9]} 18. Rc1 {[%clk
0:01:33.4]} 18... b3 {[%clk 0:02:02.5]} 19. a3 {[%clk 0:01:28.3]} 19... Ba6
{[%clk 0:02:01.9]} 20. Rg1 {[%clk 0:01:26.2]} 20... e5 {[%clk 0:01:58.2]} 21.
Be3 {[%clk 0:01:21]} 21... Bb7 {[%clk 0:01:53.5]} 22. Nd2 {[%clk 0:01:17]} 22...
exf4 {[%clk 0:01:53.6]} 23. Bxf4 {[%clk 0:01:17.8]} 23... Nd7 {[%clk 0:01:53.4]}
24. Nxb3 {[%clk 0:01:09.2]} 24... Ne5 {[%clk 0:01:48.3]} 25. Qd1 {[%clk
0:00:50.6]} 25... Ba6 {[%clk 0:01:28.1]} 26. Bxe5 {[%clk 0:00:29.6]} 26... dxe5
{[%clk 0:01:27.8]} 27. c4 {[%clk 0:00:30.5]} 27... Rfd8 {[%clk 0:01:10.4]} 28.
Qc2 {[%clk 0:00:31.6]} 28... Qb6 {[%clk 0:01:08.4]} 29. Nd2 {[%clk 0:00:22.4]}
29... Qxb2 {[%clk 0:01:04]} 30. Qxb2 {[%clk 0:00:19.2]} 30... Rxb2 {[%clk
0:01:04.5]} 31. Nb1 {[%clk 0:00:19.5]} 31... g6 {[%clk 0:00:57]} 32. c5 {[%clk
0:00:20.7]} 32... Rc8 {[%clk 0:00:47.3]} 33. c6 {[%clk 0:00:21.3]} 33... Rc7
{[%clk 0:00:40.7]} 34. a4 {[%clk 0:00:21]} 34... Rb6 {[%clk 0:00:40.1]} 35. Nd2
{[%clk 0:00:21.3]} 35... Bg5 {[%clk 0:00:36.1]} 36. Rb1 {[%clk 0:00:21.3]} 36...
Rbxc6 {[%clk 0:00:35.8]} 37. Nb3 {[%clk 0:00:22]} 37... Bd3 {[%clk 0:00:20.7]}
38. Ra1 {[%clk 0:00:23.1]} 38... Ra6 {[%clk 0:00:20.9]} 39. g3 {[%clk
0:00:24.5]} 39... Bc2 {[%clk 0:00:21.4]} 40. Nc1 {[%clk 0:00:24.4]} 40... Rc3
{[%clk 0:00:22]} 41. Kg2 {[%clk 0:00:24.9]} 41... Rd6 {[%clk 0:00:21.6]} 42. Ne2
{[%clk 0:00:26.2]} 42... Rd2 {[%clk 0:00:22.5]} 43. Kh3 {[%clk 0:00:27.4]} 43...
Rxf3 {[%clk 0:00:22.9]} 44. Rg2 {[%clk 0:00:26.4]} 44... Bxe4 {[%clk 0:00:22.6]}
45. Kg4 {[%clk 0:00:27.5]} 45... Re3 {[%clk 0:00:22.6]} 46. Re1 {[%clk
0:00:27.4]} 46... h6 {[%clk 0:00:22.8]} 0-1

[Event "***Titled Tuesday 3|2 Blitz"]
[Site "Chess.com"]
[Date "2017.02.07"]
[Round "2"]
[White "Grootneus"]
[Black "Alliswell998"]
[Result "0-1"]
[WhiteElo "2129"]
[BlackElo "2147"]
[TimeControl "180+2"]
[EndTime "13:27:03 PST"]
[Termination "Alliswell998 won by resignation"]

1. e4 {[%clk 0:03:02]} 1... c5 {[%clk 0:02:52.7]} 2. b4 {[%clk 0:03:01.8]} 2...
cxb4 {[%clk 0:02:48.7]} 3. a3 {[%clk 0:03:02.9]} 3... e6 {[%clk 0:02:48.2]} 4.
axb4 {[%clk 0:02:53.9]} 4... d5 {[%clk 0:02:48.9]} 5. exd5 {[%clk 0:02:53.5]}
5... exd5 {[%clk 0:02:48.8]} 6. b5 {[%clk 0:02:54.1]} 6... Nf6 {[%clk
0:02:48.4]} 7. Nf3 {[%clk 0:02:52.9]} 7... Bd6 {[%clk 0:02:48.6]} 8. Bd3 {[%clk
0:02:50.5]} 8... Qe7+ {[%clk 0:02:47.6]} 9. Qe2 {[%clk 0:02:50.2]} 9... Qxe2+
{[%clk 0:02:45.5]} 10. Bxe2 {[%clk 0:02:51.6]} 10... O-O {[%clk 0:02:45.8]} 11.
O-O {[%clk 0:02:53.1]} 11... Re8 {[%clk 0:02:46.6]} 12. Bd3 {[%clk 0:02:46.9]}
12... Nbd7 {[%clk 0:02:37.8]} 13. Bb2 {[%clk 0:02:43.9]} 13... Nc5 {[%clk
0:02:24.5]} 14. Ba3 {[%clk 0:02:13.5]} 14... Nfe4 {[%clk 0:02:16.9]} 15. Be2
{[%clk 0:02:09.7]} 15... Bd7 {[%clk 0:02:03.2]} 16. d4 {[%clk 0:01:57.5]} 16...
Ne6 {[%clk 0:01:52.6]} 17. Bxd6 {[%clk 0:01:52.4]} 17... Nxd6 {[%clk 0:01:52.9]}
18. Ne5 {[%clk 0:01:54]} 18... Bxb5 {[%clk 0:01:52.8]} 19. Bxb5 {[%clk
0:01:43.7]} 19... Nxb5 {[%clk 0:01:54.7]} 20. c3 {[%clk 0:01:42.2]} 20... Rac8
{[%clk 0:01:54]} 21. f4 {[%clk 0:01:38.8]} 21... f6 {[%clk 0:01:50.2]} 22. Nd3
{[%clk 0:01:20.9]} 22... a6 {[%clk 0:01:49.4]} 23. f5 {[%clk 0:01:18.5]} 23...
Ng5 {[%clk 0:01:47.8]} 24. Nc5 {[%clk 0:01:18.1]} 24... Rc7 {[%clk 0:01:44.1]}
25. Nd2 {[%clk 0:00:52.7]} 25... Nxc3 {[%clk 0:01:37.9]} 26. Rfe1 {[%clk
0:00:37.4]} 26... Nce4 {[%clk 0:01:32.7]} 27. h4 {[%clk 0:00:29]} 27... Nf7
{[%clk 0:01:21.3]} 28. Ncxe4 {[%clk 0:00:28.2]} 28... dxe4 {[%clk 0:01:21.5]}
29. Rxe4 {[%clk 0:00:28.5]} 29... Rxe4 {[%clk 0:01:20.2]} 30. Nxe4 {[%clk
0:00:30.4]} 30... Rd7 {[%clk 0:01:18]} 31. Rd1 {[%clk 0:00:29.7]} 31... b6
{[%clk 0:01:14]} 32. Kf2 {[%clk 0:00:29.1]} 32... Nd6 {[%clk 0:01:14.7]} 33.
Nxd6 {[%clk 0:00:26.6]} 33... Rxd6 {[%clk 0:01:15.4]} 34. Ke3 {[%clk 0:00:28]}
34... Kf7 {[%clk 0:01:16.4]} 35. Ke4 {[%clk 0:00:28.2]} 35... Ke7 {[%clk
0:01:14.8]} 36. Ra1 {[%clk 0:00:26.2]} 36... b5 {[%clk 0:01:13.3]} 37. g4 {[%clk
0:00:24.7]} 37... Rb6 {[%clk 0:01:07.1]} 38. Kd5 {[%clk 0:00:21.6]} 38... Kd7
{[%clk 0:01:07.8]} 39. Kc5 {[%clk 0:00:22.3]} 39... Rc6+ {[%clk 0:01:07.5]} 40.
Kd5 {[%clk 0:00:22.5]} 40... b4 {[%clk 0:00:58.4]} 41. g5 {[%clk 0:00:19.8]}
41... b3 {[%clk 0:00:52.8]} 42. Rb1 {[%clk 0:00:20.4]} 42... Rb6 {[%clk
0:00:53.3]} 43. Kc5 {[%clk 0:00:21.7]} 43... Rb8 {[%clk 0:00:52.2]} 44. d5
{[%clk 0:00:21.4]} 44... a5 {[%clk 0:00:52.2]} 45. d6 {[%clk 0:00:20.3]} 45...
a4 {[%clk 0:00:52.2]} 46. Re1 {[%clk 0:00:22]} 46... b2 {[%clk 0:00:50.7]} 47.
Re7+ {[%clk 0:00:21.2]} 47... Kd8 {[%clk 0:00:51.7]} 48. Rxg7 {[%clk 0:00:20.3]}
48... b1=Q {[%clk 0:00:43.9]} 49. Rg8+ {[%clk 0:00:21.5]} 49... Kd7 {[%clk
0:00:44.8]} 50. Rg7+ {[%clk 0:00:22.6]} 50... Kc8 {[%clk 0:00:43.3]} 51. d7+
{[%clk 0:00:21.4]} 51... Kc7 {[%clk 0:00:41]} 52. Kd5 {[%clk 0:00:21.6]} 0-1

[Event "***Titled Tuesday 3|2 Blitz"]
[Site "Chess.com"]
[Date "2017.02.07"]
[Round "2"]
[White "ftorodent"]
[Black "hansen"]
[Result "1/2-1/2"]
[WhiteElo "2508"]
[BlackElo "2634"]
[TimeControl "180+2"]
[EndTime "13:27:06 PST"]
[Termination "Game drawn by repetition"]

1. d4 {[%clk 0:03:02]} 1... Nf6 {[%clk 0:02:59.5]} 2. c4 {[%clk 0:03:00.8]} 2...
g6 {[%clk 0:02:59.9]} 3. Nc3 {[%clk 0:03:01.6]} 3... d5 {[%clk 0:02:55.1]} 4.
Nf3 {[%clk 0:03:00.8]} 4... Bg7 {[%clk 0:02:52.7]} 5. cxd5 {[%clk 0:03:01.9]}
5... Nxd5 {[%clk 0:02:52.5]} 6. Bg5 {[%clk 0:03:03.6]} 6... c5 {[%clk
0:02:50.7]} 7. Rc1 {[%clk 0:03:04.4]} 7... Nxc3 {[%clk 0:02:48.3]} 8. bxc3
{[%clk 0:03:05.5]} 8... O-O {[%clk 0:02:47.2]} 9. Qd2 {[%clk 0:03:01.3]} 9...
Nc6 {[%clk 0:02:45]} 10. e3 {[%clk 0:03:02.2]} 10... Bf5 {[%clk 0:02:36.6]} 11.
Be2 {[%clk 0:03:02.5]} 11... Rc8 {[%clk 0:02:35.5]} 12. O-O {[%clk 0:03:02.8]}
12... h6 {[%clk 0:02:32.4]} 13. Bh4 {[%clk 0:03:02.1]} 13... Be4 {[%clk
0:02:32.7]} 14. Qb2 {[%clk 0:02:58.4]} 14... Na5 {[%clk 0:02:17.3]} 15. Nd2
{[%clk 0:02:43.3]} 15... Bc6 {[%clk 0:02:15.3]} 16. Qa3 {[%clk 0:02:28.3]} 16...
b6 {[%clk 0:02:16.1]} 17. Rfd1 {[%clk 0:02:23.2]} 17... Qd6 {[%clk 0:02:08.6]}
18. dxc5 {[%clk 0:02:08.5]} 18... Qxc5 {[%clk 0:01:54.1]} 19. Qxc5 {[%clk
0:02:01.1]} 19... bxc5 {[%clk 0:01:54.9]} 20. Bxe7 {[%clk 0:01:37.9]} 20... Rfe8
{[%clk 0:01:56]} 21. Bh4 {[%clk 0:01:37.4]} 21... Rb8 {[%clk 0:01:56]} 22. Nc4
{[%clk 0:01:28.8]} 22... Bb5 {[%clk 0:01:54.1]} 23. Nxa5 {[%clk 0:01:16.9]}
23... Bxe2 {[%clk 0:01:55.3]} 24. Re1 {[%clk 0:01:12.3]} 24... Bd3 {[%clk
0:01:50.9]} 25. Nb3 {[%clk 0:00:47.1]} 25... c4 {[%clk 0:01:48.2]} 26. Nd4
{[%clk 0:00:48.2]} 26... Rb2 {[%clk 0:01:47.4]} 27. Ra1 {[%clk 0:00:49.2]} 27...
f5 {[%clk 0:01:15.3]} 28. Bg3 {[%clk 0:00:44.3]} 28... Bxd4 {[%clk 0:00:57.4]}
29. exd4 {[%clk 0:00:42.4]} 29... Rxe1+ {[%clk 0:00:54.8]} 30. Rxe1 {[%clk
0:00:43.3]} 30... Rxa2 {[%clk 0:00:56.4]} 31. h4 {[%clk 0:00:42.7]} 31... Kf7
{[%clk 0:00:54]} 32. Bd6 {[%clk 0:00:42.4]} 32... g5 {[%clk 0:00:47]} 33. h5
{[%clk 0:00:37.7]} 33... f4 {[%clk 0:00:40.1]} 34. Bc5 {[%clk 0:00:34.5]} 34...
a5 {[%clk 0:00:38.5]} 35. d5 {[%clk 0:00:32.8]} 35... Re2 {[%clk 0:00:36.1]} 36.
Ra1 {[%clk 0:00:31.1]} 36... Re5 {[%clk 0:00:37.1]} 37. Rxa5 {[%clk 0:00:31.7]}
37... Rxd5 {[%clk 0:00:38.7]} 38. Ra7+ {[%clk 0:00:33.3]} 38... Kg8 {[%clk
0:00:34.8]} 39. Bd4 {[%clk 0:00:34.2]} 39... Rd6 {[%clk 0:00:21.6]} 40. Rg7+
{[%clk 0:00:29.4]} 40... Kf8 {[%clk 0:00:22.6]} 41. Rc7 {[%clk 0:00:28.8]} 41...
Re6 {[%clk 0:00:22.8]} 42. f3 {[%clk 0:00:26.1]} 42... Re1+ {[%clk 0:00:22.3]}
43. Kh2 {[%clk 0:00:27.4]} 43... Re6 {[%clk 0:00:23.3]} 44. Kg1 {[%clk
0:00:27.2]} 44... Kg8 {[%clk 0:00:24]} 45. Rg7+ {[%clk 0:00:26.3]} 45... Kf8
{[%clk 0:00:25.3]} 46. Rc7 {[%clk 0:00:27.7]} 46... Ra6 {[%clk 0:00:26]} 47. Kh2
{[%clk 0:00:26.7]} 47... Kg8 {[%clk 0:00:26.7]} 48. Rg7+ {[%clk 0:00:26.8]}
48... Kf8 {[%clk 0:00:27.3]} 49. Rc7 {[%clk 0:00:27.6]} 49... Re6 {[%clk
0:00:27.7]} 50. Bg7+ {[%clk 0:00:28.1]} 50... Kg8 {[%clk 0:00:28.9]} 51. Bd4
{[%clk 0:00:28.7]} 51... Kf8 {[%clk 0:00:30]} 52. Bg7+ {[%clk 0:00:28.9]} 52...
Kg8 {[%clk 0:00:31.2]} 53. Bd4 {[%clk 0:00:30.6]} 53... Kf8 {[%clk 0:00:32.6]}
54. Bg7+ {[%clk 0:00:31.9]} 54... Kg8 {[%clk 0:00:33.7]} 55. Bd4 {[%clk
0:00:33.5]} 55... Kf8 {[%clk 0:00:34.9]} 1/2-1/2

[Event "***Titled Tuesday 3|2 Blitz"]
[Site "Chess.com"]
[Date "2017.02.07"]
[Round "2"]
[White "FelixBlohberger"]
[Black "Wolverine_master"]
[Result "1-0"]
[WhiteElo "2089"]
[BlackElo "1984"]
[TimeControl "180+2"]
[EndTime "13:27:08 PST"]
[Termination "FelixBlohberger won by resignation"]

1. Nf3 {[%clk 0:03:00.1]} 1... Nf6 {[%clk 0:03:00.2]} 2. c4 {[%clk 0:02:58.5]}
2... e6 {[%clk 0:03:00.3]} 3. g3 {[%clk 0:02:58.5]} 3... d5 {[%clk 0:03:00.8]}
4. Bg2 {[%clk 0:03:00.1]} 4... Be7 {[%clk 0:03:01.4]} 5. O-O {[%clk 0:03:01.6]}
5... O-O {[%clk 0:03:01.9]} 6. b3 {[%clk 0:03:02.9]} 6... c5 {[%clk 0:03:01.1]}
7. Bb2 {[%clk 0:03:02.3]} 7... Nc6 {[%clk 0:03:01.6]} 8. cxd5 {[%clk 0:03:03.3]}
8... exd5 {[%clk 0:02:51.9]} 9. d4 {[%clk 0:03:04.8]} 9... cxd4 {[%clk
0:01:39.9]} 10. Nxd4 {[%clk 0:03:04.1]} 10... Nxd4 {[%clk 0:01:40.5]} 11. Qxd4
{[%clk 0:03:01.9]} 11... Be6 {[%clk 0:01:41.4]} 12. Nc3 {[%clk 0:02:57.6]} 12...
a6 {[%clk 0:01:31.2]} 13. Rfd1 {[%clk 0:02:57.2]} 13... Rc8 {[%clk 0:00:53.1]}
14. Rac1 {[%clk 0:01:56]} 14... Qa5 {[%clk 0:00:44.2]} 15. Nxd5 {[%clk
0:00:49.4]} 15... Bxd5 {[%clk 0:00:34.7]} 16. Bxd5 {[%clk 0:00:49.8]} 16... Rxc1
{[%clk 0:00:24.4]} 17. Bxc1 {[%clk 0:00:38.7]} 17... Nxd5 {[%clk 0:00:18]} 18.
Qxd5 {[%clk 0:00:38.1]} 18... Qxa2 {[%clk 0:00:18.2]} 19. Qxb7 {[%clk
0:00:14.6]} 19... Qc2 {[%clk 0:00:10.7]} 20. Qd5 {[%clk 0:00:09.4]} 20... Bf6
{[%clk 0:00:08]} 21. Qd3 {[%clk 0:00:09.6]} 21... Qxd3 {[%clk 0:00:08.3]} 22.
Rxd3 {[%clk 0:00:11.5]} 22... Rc8 {[%clk 0:00:09.1]} 23. Bd2 {[%clk 0:00:07.2]}
23... h6 {[%clk 0:00:09.9]} 24. Kg2 {[%clk 0:00:08.4]} 24... Rc2 {[%clk
0:00:10.5]} 25. Kf3 {[%clk 0:00:08.9]} 25... Kh7 {[%clk 0:00:10.3]} 26. h4
{[%clk 0:00:08.9]} 26... h5 {[%clk 0:00:11.1]} 27. e4 {[%clk 0:00:08]} 27... Ra2
{[%clk 0:00:09.6]} 28. Ke2 {[%clk 0:00:08.9]} 28... a5 {[%clk 0:00:09.2]} 29.
Rd5 {[%clk 0:00:09.8]} 29... a4 {[%clk 0:00:09.6]} 30. bxa4 {[%clk 0:00:08.3]}
30... Rxa4 {[%clk 0:00:09.1]} 31. Kf3 {[%clk 0:00:04.7]} 31... g6 {[%clk
0:00:09.4]} 32. Be3 {[%clk 0:00:05.8]} 32... Kg7 {[%clk 0:00:08.2]} 33. e5
{[%clk 0:00:06.5]} 33... Be7 {[%clk 0:00:08.2]} 34. Rd7 {[%clk 0:00:07.5]} 34...
Kf8 {[%clk 0:00:07]} 35. Rb7 {[%clk 0:00:08.4]} 35... Ra5 {[%clk 0:00:07.5]} 36.
Rb8+ {[%clk 0:00:06.4]} 36... Kg7 {[%clk 0:00:08.1]} 37. Rb7 {[%clk 0:00:07.7]}
37... Rd5 {[%clk 0:00:08.6]} 38. Rxe7 {[%clk 0:00:08.1]} 1-0

[Event "***Titled Tuesday 3|2 Blitz"]
[Site "Chess.com"]
[Date "2017.02.07"]
[Round "2"]
[White "MasterLeif"]
[Black "capatl"]
[Result "1-0"]
[WhiteElo "2351"]
[BlackElo "2351"]
[TimeControl "180+2"]
[EndTime "13:27:09 PST"]
[Termination "MasterLeif won by resignation"]

1. e4 {[%clk 0:02:57.2]} 1... c5 {[%clk 0:02:58.5]} 2. Nf3 {[%clk 0:02:57.9]}
2... e6 {[%clk 0:02:52.6]} 3. d4 {[%clk 0:02:58.7]} 3... cxd4 {[%clk 0:02:51.2]}
4. Nxd4 {[%clk 0:03:00.6]} 4... a6 {[%clk 0:02:44.3]} 5. g4 {[%clk 0:03:02.2]}
5... b5 {[%clk 0:02:39.7]} 6. Bg2 {[%clk 0:03:02.8]} 6... Bb7 {[%clk 0:02:38.9]}
7. a4 {[%clk 0:02:59.3]} 7... b4 {[%clk 0:02:37.6]} 8. Bf4 {[%clk 0:02:57.4]}
8... Nc6 {[%clk 0:02:04.7]} 9. O-O {[%clk 0:02:54.8]} 9... Qb6 {[%clk 0:02:01]}
10. Nxc6 {[%clk 0:02:49.8]} 10... Qxc6 {[%clk 0:01:59.5]} 11. c3 {[%clk
0:02:46.8]} 11... Nf6 {[%clk 0:01:50.2]} 12. Re1 {[%clk 0:02:44.4]} 12... d5
{[%clk 0:01:38.3]} 13. exd5 {[%clk 0:02:35.6]} 13... Nxd5 {[%clk 0:01:38]} 14.
cxb4 {[%clk 0:02:13]} 14... Bxb4 {[%clk 0:01:28.8]} 15. Nc3 {[%clk 0:02:13.9]}
15... Bxc3 {[%clk 0:01:18.7]} 16. Bxd5 {[%clk 0:02:14.5]} 16... Qxd5 {[%clk
0:01:17.3]} 17. Qxd5 {[%clk 0:02:15.9]} 17... Bxd5 {[%clk 0:01:18.6]} 18. bxc3
{[%clk 0:02:17]} 18... Rc8 {[%clk 0:01:10.1]} 19. Bd2 {[%clk 0:01:55.8]} 19...
Rc4 {[%clk 0:01:07]} 20. f4 {[%clk 0:01:55]} 20... g5 {[%clk 0:00:59.8]} 21. Rf1
{[%clk 0:01:52.5]} 21... Rg8 {[%clk 0:00:49.2]} 22. h3 {[%clk 0:01:45.4]} 22...
h5 {[%clk 0:00:46.7]} 23. fxg5 {[%clk 0:01:32.9]} 23... hxg4 {[%clk 0:00:46.9]}
24. Rf4 {[%clk 0:00:59.3]} 24... Rxf4 {[%clk 0:00:45.6]} 25. Bxf4 {[%clk
0:01:01.2]} 25... gxh3 {[%clk 0:00:46.3]} 26. Kh2 {[%clk 0:00:57.5]} 26... Rh8
{[%clk 0:00:46.2]} 27. Rb1 {[%clk 0:00:53.8]} 27... Kd7 {[%clk 0:00:45.3]} 28.
a5 {[%clk 0:00:51.8]} 28... Rh4 {[%clk 0:00:44.6]} 29. Rb4 {[%clk 0:00:51.8]}
29... Bg2 {[%clk 0:00:32.1]} 30. Bg3 {[%clk 0:00:29.1]} 30... Rxb4 {[%clk
0:00:31.1]} 31. cxb4 {[%clk 0:00:31]} 31... Kc6 {[%clk 0:00:31.9]} 32. Kg1
{[%clk 0:00:27.5]} 32... Kd5 {[%clk 0:00:32.6]} 33. Kf2 {[%clk 0:00:14.8]} 33...
e5 {[%clk 0:00:33.9]} 34. Ke3 {[%clk 0:00:16]} 34... e4 {[%clk 0:00:34.7]} 35.
Bh2 {[%clk 0:00:16.4]} 35... Kc4 {[%clk 0:00:35.1]} 36. Bd6 {[%clk 0:00:17.3]}
36... Kb5 {[%clk 0:00:34.3]} 37. Kf2 {[%clk 0:00:14.7]} 37... Kc6 {[%clk
0:00:34.6]} 38. Bh2 {[%clk 0:00:15.5]} 38... Kd5 {[%clk 0:00:35.7]} 39. Ke3
{[%clk 0:00:17]} 39... Ke6 {[%clk 0:00:36.8]} 40. Bg3 {[%clk 0:00:17.8]} 40...
Kf5 {[%clk 0:00:37.8]} 41. b5 {[%clk 0:00:14.3]} 41... axb5 {[%clk 0:00:37]} 42.
a6 {[%clk 0:00:16.2]} 42... Kg4 {[%clk 0:00:34.8]} 43. Bh2 {[%clk 0:00:17.5]}
43... b4 {[%clk 0:00:29.5]} 44. a7 {[%clk 0:00:16.6]} 44... b3 {[%clk
0:00:28.1]} 45. a8=Q {[%clk 0:00:17.3]} 45... b2 {[%clk 0:00:28.3]} 46. Qb8
{[%clk 0:00:18.2]} 1-0